bitfinex/quotes_ETHUSD_20251010
["timestamp","ask_amount","ask_price","bid_price","bid_amount"]
[1760093134148,0.00920001,4339.9,4339.6,0.4583]
[1760093134457,0.00920001,4339.9,4339.6,2.76265798]
[1760093134660,0.00920001,4339.9,4339.6,2.30435798]
[1760093134965,0.00920001,4339.9,4339.7,0.4583]
[1760093136372,0.00920001,4339.9,4339.4,2.76275806]
[1760093136546,0.00920001,4339.9,4339.5,0.4583]
[1760093136746,0.00920001,4339.9,4339.5,2.7627013]
[1760093137248,0.00920001,4339.9,4339.6,2.30433655]
[1760093137485,0.00920001,4339.9,4339.6,2.76263655]
[1760093137670,0.00920001,4339.9,4339.6,2.30433655]
[1760093137835,0.00920001,4339.9,4339.6,0.4583]
[1760093138805,0.00920001,4339.9,4339.3,8.91767329]
[1760093138970,0.43680001,4339.9,4339.3,8.91767329]
[1760093139474,2.35680001,4339.9,4339.3,8.91767329]
[1760093139679,2.35680001,4339.9,4339.3,2.41967329]
[1760093139840,2.35680001,4339.9,4339.3,8.91767329]
[1760093140471,2.35680001,4339.9,4339.3,2.41967329]
[1760093140877,2.35680001,4339.9,4338.8,0.001]
[1760093140878,4.88140466,4339.5,4338.8,0.001]
[1760093141039,0.643,4339.8,4338.8,0.001]
[1760093141040,4.88140466,4339.1,4339.0,0.1152]
[1760093141240,5.30900466,4339.1,4339.0,0.1152]
[1760093141435,0.4276,4339.3,4339.0,0.1152]
[1760093141875,2.30450213,4339.4,4339.0,0.1152]
[1760093142249,2.99716005,4339.6,4339.0,0.1152]
[1760093142250,0.4276,4339.3,4339.0,0.1152]
[1760093143693,0.4583,4339.5,4339.0,0.1152]
[1760093143872,0.1152,4339.7,4339.1,2.76292139]
[1760093144379,0.69279824,4339.6,4339.2,0.4583]
[1760093144567,0.69279824,4339.6,4339.4,2.30442922]
[1760093144769,0.69279824,4339.6,4339.5,0.4583]
[1760093144955,1.93120001,4339.9,4339.3,2.41970497]
[1760093145143,0.01120001,4339.9,4339.3,2.41970497]
[1760093145343,0.01120001,4339.9,4339.4,2.30446219]
[1760093145643,4.14774299,4339.8,4339.4,2.30446219]
[1760093145843,4.14774299,4339.8,4339.4,2.76276219]
[1760093149579,4.14774299,4339.5,4339.3,0.1152]
[1760093149884,4.61854299,4339.5,4339.3,0.1152]
[1760093151002,0.4708,4339.4,4339.1,0.1152]
[1760093151188,4.14774299,4339.2,4339.1,0.1152]
[1760093151503,4.61854299,4339.2,4339.1,0.1152]
[1760093153196,4.14774299,4339.2,4339.1,0.1152]
[1760093154268,4.61854299,4339.2,4339.1,0.1152]
[1760093155999,4.61854299,4339.2,4338.8,0.001]
[1760093156195,4.61854299,4339.2,4338.9,0.1152]
[1760093156196,0.4708,4339.1,4338.9,0.1152]
[1760093156598,0.4708,4339.0,4338.9,0.1152]
[1760093157100,6.45234783,4339.2,4338.9,0.1152]
[1760093157302,0.4668,4339.0,4338.8,0.001]
[1760093163226,0.80798384,4339.1,4338.8,2.30577208]
[1760093163534,1.27478384,4339.1,4338.8,0.001]
[1760093163696,0.80798384,4339.1,4338.8,0.001]
[1760093164195,0.69278384,4339.1,4338.8,0.001]
[1760093164394,0.69278384,4339.1,4338.8,2.30576617]
[1760093164716,2.0352,4339.4,4338.8,0.4742]
[1760093164924,0.1152,4339.4,4338.9,2.30473161]
[1760093165123,0.582,4339.4,4338.8,0.4742]
[1760093165325,0.582,4339.4,4339.0,2.30466829]
[1760093165638,0.582,4339.4,4339.0,2.30463]
[1760093166040,0.5812,4339.4,4339.0,2.30463]
[1760093166640,4.61454299,4339.3,4339.0,2.30466825]
[1760093166835,4.61454299,4339.3,4339.1,2.30462538]
[1760093166836,4.14774299,4339.3,4339.1,2.30462538]
[1760093168537,1.922,4339.5,4338.9,2.80095866]
[1760093168708,1.922,4339.5,4339.0,2.41983694]
[1760093169145,1.922,4339.5,4339.0,2.89303694]
[1760093169439,0.002,4339.5,4339.1,2.30461045]
[1760093170139,0.002,4339.5,4339.0,2.89306462]
[1760093170642,0.4688,4339.5,4339.0,2.89306462]
[1760093170850,0.4688,4339.5,4339.0,2.41986462]
[1760093171053,0.4668,4339.4,4339.0,2.41986462]
[1760093172242,4.14774299,4339.3,4339.0,0.1152]
[1760093172854,0.4668,4339.2,4339.0,0.1152]
[1760093173237,4.14774299,4339.3,4339.0,0.1152]
[1760093173238,0.4668,4339.1,4339.0,0.1152]
[1760093174456,0.4668,4339.1,4338.8,0.001]
[1760093174657,4.14774299,4338.9,4338.8,0.001]
[1760093175041,4.61454299,4338.9,4338.8,0.001]
[1760093179743,9.3182746,4338.9,4338.8,0.001]
[1760093179958,11.3534746,4338.9,4338.8,0.001]
[1760093180164,11.85134871,4338.9,4338.8,0.001]
[1760093180370,11.3534746,4338.9,4338.8,0.001]
[1760093180980,17.8524746,4338.9,4338.8,0.001]
[1760093181178,18.35020249,4338.9,4338.8,0.001]
[1760093186100,18.35220249,4338.9,4338.8,0.001]
[1760093187998,14.2044595,4338.9,4338.8,0.001]
[1760093188300,18.35220249,4338.9,4338.8,0.001]
[1760093190512,2.30499723,4338.4,4338.3,0.001]
[1760093190739,12.95274022,4338.4,4338.3,0.001]
[1760093191027,15.31614022,4338.4,4338.3,0.001]
[1760093191171,15.40854191,4338.4,4338.3,0.001]
[1760093194172,13.10354468,4338.4,4338.3,0.001]
[1760093194377,15.40854191,4338.4,4338.3,0.001]
[1760093195575,8.90854191,4338.4,4338.3,0.001]
[1760093195783,15.40854191,4338.4,4338.3,0.001]
[1760093197313,15.52162323,4338.4,4338.3,0.001]
[1760093197681,15.40854191,4338.4,4338.3,0.001]
[1760093200613,2.01240169,4338.4,4338.3,0.001]
[1760093200778,8.25960169,4338.4,4338.3,0.001]
[1760093201116,8.1672,4338.4,4338.3,0.001]
[1760093201324,10.91559723,4338.4,4338.3,0.001]
[1760093202437,8.6106,4338.4,4338.3,0.001]
[1760093202711,2.4,4338.8,4338.4,2.30496169]
[1760093202712,6.5,4338.8,4338.4,2.30496169]
[1760093202910,6.5,4338.8,4338.5,2.57857487]
[1760093203109,6.5,4338.9,4338.5,2.57857487]
[1760093203511,6.5,4338.9,4338.6,2.30488389]
[1760093203814,6.5,4338.9,4338.6,0.4305]
[1760093204777,6.5,4338.9,4338.7,0.4305]
[1760093205206,6.5,4338.9,4338.5,2.57857839]
[1760093205413,6.5,4338.9,4338.5,3.00907839]
[1760093206518,6.5,4338.9,4338.5,0.70414617]
[1760093206900,0.1152,4339.1,4338.5,2.57858582]
[1760093207110,6.5,4339.0,4338.7,2.30479343]
[1760093207325,6.16212697,4339.4,4338.8,2.73528281]
[1760093207326,6.5,4339.1,4338.8,2.73528281]
[1760093207628,6.5,4339.1,4338.9,2.76713161]
[1760093208096,1.922,4339.4,4339.0,2.32772527]
[1760093208424,8.422,4339.4,4339.1,2.30458437]
[1760093208595,8.422,4339.4,4339.2,2.30455789]
[1760093208789,6.502,4339.4,4339.2,2.30455789]
[1760093209021,0.002,4339.4,4339.3,2.30451916]
[1760093209320,0.002,4339.4,4339.3,2.41971916]
[1760093209708,0.002,4339.4,4339.3,0.1152]
[1760093210221,0.002,4339.4,4339.3,0.5776]
[1760093210222,0.0012,4339.4,4339.3,0.5776]
[1760093210428,0.0012,4339.4,4339.3,0.1152]
[1760093212393,0.0012,4339.4,4339.3,0.5776]
[1760093212814,0.0012,4339.4,4339.3,0.1152]
[1760093213529,0.4504,4339.4,4339.3,0.1152]
[1760093213826,0.0012,4339.4,4339.3,0.1152]
[1760093214820,0.0012,4339.4,4339.3,0.5776]
[1760093215329,0.0012,4339.4,4339.3,0.1152]
[1760093216632,0.0012,4339.4,4339.3,2.88211916]
[1760093217331,0.0012,4339.4,4339.3,0.5776]
[1760093217631,0.0012,4339.4,4339.3,2.88211916]
[1760093218038,0.0012,4339.4,4339.3,0.5776]
[1760093218510,0.0012,4339.4,4339.3,2.89491916]
[1760093218832,0.0012,4339.4,4339.3,3.4148735]
[1760093223931,0.0012,4339.4,4339.3,0.5904]
[1760093224132,0.0012,4339.4,4339.3,0.1162]
[1760093225138,0.4495,4339.4,4339.3,0.1162]
[1760093228054,0.0012,4339.4,4339.3,0.1162]
[1760093228642,0.4495,4339.4,4339.3,0.1162]
[1760093229651,0.0012,4339.4,4339.3,0.1162]
[1760093229836,0.0012,4339.4,4339.3,0.001]
[1760093229837,9.5563728,4339.4,4339.3,0.001]
[1760093230053,12.90145332,4339.4,4339.3,0.001]
[1760093231861,19.39945332,4339.4,4339.3,0.001]
[1760093232152,19.39865332,4339.4,4339.3,0.001]
[1760093232557,20.03225332,4339.4,4339.3,0.001]
[1760093239835,20.03225332,4339.4,4338.8,0.001]
[1760093239836,0.6336,4339.2,4338.8,0.001]
[1760093240159,9.74095085,4338.5,4338.4,0.001]
[1760093240362,2.30499723,4338.4,4338.3,0.001]
[1760093240523,2.30520977,4338.0,4337.9,0.001]
[1760093240726,15.60761652,4338.0,4337.9,0.001]
[1760093240924,16.05591652,4338.0,4337.9,0.001]
[1760093241150,16.61327623,4338.0,4337.9,0.001]
[1760093245462,2.92565971,4338.0,4337.9,0.001]
[1760093245673,7.55745157,4338.0,4337.9,0.001]
[1760093251514,5.2522418,4338.0,4337.9,0.001]
[1760093251789,9.0011418,4338.0,4337.9,0.001]
[1760093253388,6.6162,4338.0,4337.9,0.001]
[1760093253542,6.501,4338.0,4337.9,0.4341]
[1760093253877,0.1152,4338.3,4337.9,0.4341]
[1760093254081,6.501,4338.2,4337.9,0.4341]
[1760093254276,6.5002,4338.2,4337.9,0.4341]
[1760093254972,6.5002,4338.2,4338.0,0.4331]
[1760093255140,6.5002,4338.2,4337.9,0.001]
[1760093255373,6.5002,4338.2,4338.0,2.73827111]
[1760093255574,6.5002,4338.2,4338.1,0.4331]
[1760093256802,6.5002,4338.2,4338.0,0.5160783]
[1760093257009,6.5002,4338.2,4338.0,0.9491783]
[1760093257177,6.5002,4338.2,4337.9,0.001]
[1760093258185,6.5002,4338.2,4338.0,0.001]
[1760093263216,6.9377,4338.2,4338.0,0.001]
[1760093265016,0.4375,4338.1,4338.0,0.001]
[1760093266215,6.5002,4338.2,4338.0,0.001]
[1760093272518,6.9485,4338.2,4338.0,0.001]
[1760093276325,6.4994,4338.2,4338.0,0.001]
[1760093276787,0.1172,4338.5,4338.0,0.29051112]
[1760093276987,0.002,4338.5,4338.4,2.30499723]
[1760093277216,0.002,4338.5,4338.4,2.85529723]
[1760093281438,0.002,4338.5,4338.4,0.5503]
[1760093282050,0.002,4338.5,4338.4,2.85529723]
[1760093283939,0.002,4338.5,4338.4,0.1152]
[1760093286207,0.4387,4338.5,4338.4,0.1152]
[1760093288150,0.002,4338.5,4338.4,0.1152]
[1760093288934,2.30500824,4338.4,4338.0,0.001]
[1760093289104,6.8924673,4338.3,4338.1,0.1152]
[1760093289634,4.58740793,4338.3,4338.1,0.1152]
[1760093289801,4.15070793,4338.3,4338.1,0.1152]
[1760093290001,0.4367,4338.2,4338.1,0.1152]
[1760093291836,0.4367,4338.2,4338.0,0.001]
[1760093292228,6.45577346,4338.3,4338.0,0.001]
[1760093292413,0.4367,4338.1,4338.0,0.001]
[1760093293002,4.15070793,4338.3,4338.0,0.001]
[1760093293503,2.74364638,4338.5,4338.0,0.001]
[1760093293809,2.74170235,4338.4,4338.0,0.001]
[1760093294542,0.4367,4338.3,4338.0,0.001]
[1760093295038,0.002,4338.5,4338.0,0.001]
[1760093295402,0.002,4338.5,4338.0,2.74129964]
[1760093296630,0.4387,4338.5,4338.0,0.4361]
[1760093296839,2.74365043,4338.5,4338.0,0.001]
[1760093297036,0.4367,4338.4,4338.0,0.001]
[1760093297530,0.002,4338.5,4338.2,2.30510044]
[1760093297741,0.002,4338.5,4338.1,0.4351]
[1760093298648,0.0012,4338.5,4338.1,0.4351]
[1760093298842,0.0012,4338.5,4338.0,2.30620838]
[1760093298843,0.0012,4338.5,4338.0,0.001]
[1760093299050,0.0012,4338.5,4338.2,0.1152]
[1760093299441,0.0012,4338.5,4338.3,0.4351]
[1760093299749,0.0012,4338.5,4338.3,2.74013594]
[1760093299951,0.0012,4338.5,4338.4,0.4351]
[1760093300450,0.0012,4338.5,4338.2,2.42029087]
[1760093300627,0.0012,4338.5,4338.2,2.85539087]
[1760093301448,0.0012,4338.5,4338.2,0.1152]
[1760093301666,0.4367,4338.4,4338.2,0.1152]
[1760093301951,0.4367,4338.3,4338.2,0.1152]
[1760093302653,0.0012,4338.5,4338.2,0.1152]
[1760093303129,0.4379,4338.5,4338.2,0.1152]
[1760093304265,0.0012,4338.5,4338.2,0.1152]
[1760093304433,0.4379,4338.5,4338.2,0.1152]
[1760093305860,0.0012,4338.5,4338.2,0.1152]
[1760093306059,0.0012,4338.5,4338.3,2.74014564]
[1760093306565,0.0012,4338.5,4338.3,0.4351]
[1760093307879,0.0012,4338.5,4338.2,2.42030097]
[1760093308070,0.0012,4338.5,4338.3,2.77473643]
[1760093308289,0.0012,4338.5,4338.4,2.30499723]
[1760093308575,0.0012,4338.5,4338.4,2.88989723]
[1760093320631,0.0004,4338.5,4338.4,2.88989723]
[1760093321328,0.0004,4338.5,4338.4,0.5849]
[1760093321497,0.0004,4338.5,4338.4,1.80178326]
[1760093321897,0.0004,4338.5,4338.4,4.10678049]
[1760093322692,0.0004,4338.5,4338.4,10.60578049]
[1760093324844,0.0004,4338.5,4338.4,1.33208326]
[1760093325037,0.0004,4338.5,4338.4,0.1152]
[1760093326240,0.0004,4338.5,4338.4,0.5849]
[1760093327134,0.0004,4338.5,4338.4,2.9129472]
[1760093327454,0.0004,4338.5,4338.4,9.38889723]
[1760093327726,0.0004,4338.5,4338.4,13.53960516]
[1760093327917,0.0004,4338.5,4338.4,10.97346683]
[1760093342769,0.0016,4339.0,4338.9,2.30473161]
[1760093342931,0.0016,4339.0,4338.9,8.80373161]
[1760093343133,0.0016,4339.0,4338.9,9.37753161]
[1760093344232,0.0016,4339.0,4338.9,14.25970373]
[1760093344472,0.0016,4339.0,4338.9,18.0760542]
[1760093345134,0.0016,4339.0,4338.9,18.8240542]
[1760093354108,1e-08,4339.5,4338.9,16.51932259]
[1760093354281,1e-08,4339.5,4339.4,7.18663817]
[1760093354471,1e-08,4339.5,4339.4,13.79983817]
[1760093354803,1e-08,4339.5,4339.4,15.63842199]
[1760093357805,1e-08,4339.5,4339.4,17.65075819]
[1760093361796,1e-08,4339.5,4339.4,20.04975819]
[1760093362015,0.01,4340.9,4339.5,1.92]
[1760093362186,0.01,4340.9,4340.8,2.30372281]
[1760093362810,0.01,4340.9,4340.8,2.76232281]
[1760093363614,0.01,4340.9,4340.8,9.26032281]
[1760093364112,0.01,4340.9,4340.8,8.80172281]
[1760093364714,0.0092,4340.9,4340.8,8.80172281]
[1760093365210,0.0092,4340.9,4340.8,9.26032281]
[1760093367011,0.0092,4340.9,4340.8,10.42817426]
[1760093367203,0.0092,4340.9,4340.8,10.54257426]
[1760093367385,0.0092,4340.9,4340.8,11.02707426]
[1760093367710,1e-08,4340.9,4340.8,11.02707426]
[1760093369187,1e-08,4340.9,4340.8,12.94707426]
[1760093369828,0.00200001,4340.9,4340.8,12.94707426]
[1760093370921,1e-08,4341.4,4340.9,4.22366974]
[1760093371226,1e-08,4341.4,4341.3,7.3000296]
[1760093371385,1e-08,4341.4,4341.3,13.7960296]
[1760093371594,1e-08,4341.9,4341.4,2.30340443]
[1760093371899,1e-08,4341.9,4341.8,7.29976434]
[1760093372110,1e-08,4341.9,4341.8,17.8059707]
[1760093372311,1e-08,4341.9,4341.8,18.2400707]
[1760093372827,1e-08,4341.9,4341.8,18.3544707]
[1760093373196,1e-08,4341.9,4341.8,20.2744707]
[1760093374024,0.01,4342.9,4342.8,2.30266187]
[1760093374196,1e-08,4342.9,4342.8,16.30810018]
[1760093374387,1e-08,4342.9,4342.8,16.74220018]
[1760093375803,1e-08,4342.9,4342.8,16.94900018]
[1760093376217,1e-08,4342.9,4342.8,3.17382806]
[1760093376398,1e-08,4342.9,4342.8,16.97302679]
[1760093376601,1e-08,4342.9,4342.8,18.87000018]
[1760093376893,0.01,4343.9,4342.8,18.87000018]
[1760093376894,1e-08,4343.9,4343.8,2.30213177]
[1760093377240,1e-08,4343.9,4343.8,18.48075893]
[1760093377404,1e-08,4343.9,4343.8,18.89183762]
[1760093377741,1e-08,4343.9,4343.8,20.02029432]
[1760093378306,1e-08,4344.9,4344.4,2.30181382]
[1760093378507,1e-08,4344.9,4344.8,7.41257403]
[1760093378711,1e-08,4344.9,4344.8,20.04299868]
[1760093379030,1e-08,4344.9,4344.8,20.47709868]
[1760093379415,1e-08,4344.9,4344.8,21.11069868]
[1760093379615,0.01,4346.9,4345.0,0.6336]
[1760093379831,0.01,4346.9,4346.8,2.30054292]
[1760093380034,0.01,4346.9,4346.8,4.85554292]
[1760093380231,0.01,4346.9,4346.8,5.28964292]
[1760093380607,0.01,4346.9,4345.2,4.22134976]
[1760093380608,0.01,4346.9,4346.0,0.4341]
[1760093380811,0.1517,4346.8,4346.5,2.53055791]
[1760093381133,0.1517,4346.8,4345.7,2.3011177]
[1760093381134,0.1517,4346.7,4345.6,0.4341]
[1760093381319,0.01,4346.9,4346.6,15.103]
[1760093381520,0.01,4346.9,4346.7,4.39]
[1760093381698,0.01,4346.9,4346.8,2.30054292]
[1760093381895,0.01,4346.9,4346.8,2.73464292]
[1760093382499,0.01,4346.9,4346.8,18.94854292]
[1760093382698,0.01,4346.9,4346.8,20.86554292]
[1760093383128,0.01,4346.9,4346.8,20.86454292]
[1760093383848,0.01,4346.9,4346.8,12.95554292]
[1760093384144,0.01,4346.9,4346.8,20.86454292]
[1760093384347,0.01,4346.9,4346.8,13.38864292]
[1760093384549,0.01,4346.9,4346.8,21.29764292]
[1760093384754,0.01,4346.9,4346.8,20.86354292]
[1760093386362,0.01,4346.9,4346.8,21.01524292]
[1760093386756,0.0092,4346.9,4346.8,21.01524292]
[1760093387249,0.0092,4346.9,4346.8,21.01224292]
[1760093388164,0.0092,4346.9,4346.8,2.45224292]
[1760093388339,0.0092,4346.9,4346.8,21.01224292]
[1760093388942,0.0112,4346.9,4346.8,21.01224292]
[1760093389228,0.0112,4346.9,4346.8,2.45224292]
[1760093389860,0.0112,4346.9,4346.8,21.01124292]
[1760093390060,0.0112,4346.9,4346.8,2.45224292]
[1760093390268,0.0112,4346.9,4346.8,21.01024292]
[1760093390773,0.0112,4346.9,4346.8,2.45224292]
[1760093391074,0.1629,4346.9,4346.8,0.1517]
[1760093391283,0.1629,4346.9,4346.8,18.7077]
[1760093391284,0.0112,4346.9,4346.8,18.7077]
[1760093391485,0.1256,4346.9,4346.8,21.00824292]
[1760093391641,0.0112,4346.9,4346.8,20.85654292]
[1760093392088,0.0112,4346.9,4346.8,21.28824292]
[1760093392247,0.0112,4346.9,4346.8,24.28801337]
[1760093394993,0.0112,4346.9,4346.8,0.6336]
[1760093395188,0.1736,4346.9,4346.8,0.6336]
[1760093395362,0.1736,4346.9,4346.8,18.556]
[1760093395561,0.0112,4346.9,4346.8,20.85654292]
[1760093396755,0.0112,4346.9,4346.8,25.42119946]
[1760093396974,0.0112,4346.9,4346.8,27.67296991]
[1760093397483,0.0112,4346.9,4346.8,23.54001337]
[1760093398448,1e-08,4346.9,4346.8,23.54001337]
[1760093399052,1e-08,4346.9,4346.8,21.62401337]
[1760093399285,1e-08,4346.9,4346.8,23.54001337]
[1760093400985,1e-08,4346.9,4346.8,25.46001337]
[1760093402288,0.01,4347.9,4347.8,2.3000138]
[1760093402486,0.01,4347.9,4347.8,7.91001518]
[1760093402690,0.01,4347.9,4347.8,8.36071518]
[1760093403058,0.01,4347.9,4347.8,9.01849388]
[1760093403474,0.01,4347.9,4347.8,3.18779388]
[1760093403683,0.01,4347.9,4347.8,21.5117925]
[1760093403989,0.01,4348.9,4348.0,2.29988246]
[1760093404195,0.01,4348.9,4347.8,19.6624787]
[1760093404196,0.01,4348.9,4348.8,4.21548491]
[1760093404400,0.01,4348.9,4348.8,7.67848491]
[1760093404560,0.01,4348.9,4348.8,18.93548491]
[1760093404764,0.01,4348.9,4348.8,20.85148491]
[1760093405367,0.50396281,4348.9,4348.8,20.85148491]
[1760093405574,2.29841771,4350.9,4348.8,18.552]
[1760093405787,0.1144,4349.3,4349.2,2.29927342]
[1760093405977,0.1144,4349.3,4349.2,13.66627342]
[1760093406313,2.29771221,4352.2,4349.2,11.8177]
[1760093406314,0.69124503,4351.0,4349.2,11.8177]
[1760093406519,0.1144,4349.9,4349.2,4.0281]
[1760093406807,0.1144,4349.9,4349.8,10.20295627]
[1760093406972,0.1144,4349.9,4349.8,13.66595627]
[1760093407180,0.1144,4349.9,4349.6,2.29904136]
[1760093407523,0.1144,4349.9,4349.8,17.38695627]
[1760093408078,0.1044,4349.9,4349.8,17.38695627]
[1760093408328,0.45058738,4350.6,4349.8,15.5387]
[1760093408476,0.45058738,4350.6,4350.5,2.29858636]
[1760093408679,0.1144,4350.7,4350.5,8.87458636]
[1760093408877,0.1136,4350.7,4350.6,10.20053353]
[1760093409923,0.1136,4350.7,4350.6,10.65123353]
[1760093410713,0.01,4351.9,4351.2,2.29821219]
[1760093410909,0.01,4351.9,4351.8,1.915]
[1760093411114,0.01,4351.9,4351.8,5.377]
[1760093412283,0.01,4351.9,4351.0,0.11671084]
[1760093412284,0.1144,4351.8,4351.0,0.11671084]
[1760093412481,0.01,4351.9,4351.0,0.11671084]
[1760093412682,0.01,4351.9,4351.8,7.901]
[1760093413010,0.01,4351.9,4351.8,11.363]
[1760093414297,0.01,4351.9,4351.8,13.66089971]
[1760093414829,0.01,4351.9,4351.8,11.363]
[1760093415328,0.01,4351.9,4351.8,13.66089971]
[1760093417182,0.6336,4353.6,4352.5,2.29752681]
[1760093417429,2.29684921,4353.8,4353.5,1.915]
[1760093417595,2.29684921,4353.8,4353.6,9.445]
[1760093417930,1.92,4353.9,4353.6,9.445]
[1760093417931,0.69077231,4353.9,4353.6,9.445]
[1760093418440,1.15906843,4353.9,4351.8,0.6336]
[1760093418733,2.29700241,4353.5,4351.9,7.181]
[1760093419033,1.92,4353.0,4350.6,0.69091549]
[1760093419332,0.6336,4352.1,4352.0,5.984]
[1760093419482,0.6236,4352.1,4352.0,11.019]
[1760093419884,1.92,4352.8,4351.1,0.01]
[1760093420230,4.2173718,4352.8,4352.7,1.914]
[1760093420525,2.29791619,4351.8,4351.1,0.01]
[1760093420771,2.29791619,4351.8,4351.7,1.914]
[1760093420915,0.691046,4351.9,4351.7,4.067]
[1760093421097,2.98889291,4351.9,4351.8,1.914]
[1760093421638,0.6336,4353.5,4351.8,1.914]
[1760093421927,2.29742514,4352.7,4351.7,2.153]
[1760093422133,2.29749041,4352.6,4351.7,2.153]
[1760093422435,4.85109041,4352.6,4352.5,1.914]
[1760093422599,4.85109041,4352.6,4352.5,5.376]
[1760093422983,2.5536,4352.6,4352.5,5.376]
[1760093423181,0.47829612,4353.9,4352.5,5.376]
[1760093423495,3.4086875,4353.9,4353.8,1.914]
[1760093423702,5.18631262,4353.9,4353.8,11.13667201]
[1760093424115,4.70631262,4353.9,4353.8,11.13667201]
[1760093424554,0.11492365,4354.5,4353.8,11.13667201]
[1760093424729,0.0289,4353.9,4353.8,11.13667201]
[1760093425025,2.32569138,4353.9,4353.8,11.13667201]
[1760093425419,0.0289,4353.9,4353.8,11.13667201]
[1760093425934,2.41125853,4353.8,4352.2,0.1144]
[1760093426102,0.1144,4352.9,4352.8,2.2973601]
[1760093426441,0.1144,4352.9,4352.7,2.29742247]
[1760093426609,0.1144,4352.9,4352.8,18.54]
[1760093426930,0.1144,4352.9,4352.8,20.8353718]
[1760093428639,0.1144,4352.9,4352.8,18.538]
[1760093429002,0.1144,4352.9,4352.8,18.537]
[1760093429201,0.1144,4352.9,4352.8,20.8343718]
[1760093430017,0.1144,4352.9,4352.8,2.2973718]
[1760093430225,0.1144,4352.9,4352.8,20.8343718]
[1760093430799,0.1144,4352.9,4352.8,18.537]
[1760093431005,0.1136,4352.9,4352.8,18.537]
[1760093431205,0.1425,4352.9,4352.2,0.1144]
[1760093431406,2.32632165,4352.8,4352.3,7.178]
[1760093431705,2.29768852,4352.2,4352.1,0.01]
[1760093431899,2.29768852,4352.2,4352.1,18.546]
[1760093432098,2.32658852,4352.2,4352.1,18.546]
[1760093432297,2.32658852,4352.2,4352.1,0.01]
[1760093432528,2.32658852,4352.2,4352.1,18.402]
[1760093432740,2.32658852,4352.2,4352.1,0.01]
[1760093432937,2.96018852,4352.2,4352.1,0.01]
[1760093433230,4.88018852,4352.2,4352.1,18.545]
[1760093433397,4.88018852,4352.2,4352.1,0.01]
[1760093433599,4.88018852,4352.2,4351.6,0.001]
[1760093433600,4.85134132,4352.1,4351.6,0.001]
[1760093433800,2.5536,4351.5,4351.1,0.01]
[1760093434002,2.93181658,4351.2,4351.1,0.01]
[1760093434203,2.93181658,4351.2,4351.1,17.628]
[1760093434397,2.95971658,4351.2,4351.1,0.01]
[1760093434602,3.45295716,4351.2,4351.1,17.628]
[1760093434836,3.91409868,4351.2,4351.1,17.628]
[1760093435049,5.83409868,4351.2,4351.1,0.01]
[1760093435454,5.83409868,4351.2,4350.1,3.12]
[1760093435455,0.6336,4350.5,4350.1,3.12]
[1760093435631,4.85234488,4350.2,4350.1,3.12]
[1760093435855,5.37348546,4350.2,4350.1,21.391]
[1760093436061,3.07474058,4350.2,4350.1,21.391]
[1760093436286,1.9479,4350.2,4350.1,3.12]
[1760093436566,4.88024488,4350.2,4350.1,20.737]
[1760093436767,4.88024488,4350.2,4350.1,3.12]
[1760093436968,4.88024488,4350.2,4350.1,21.659]
[1760093437270,2.29856006,4350.6,4350.1,3.12]
[1760093437440,2.29874488,4350.2,4350.1,3.12]
[1760093437642,2.29874488,4350.2,4350.1,20.738]
[1760093438675,2.29874488,4350.2,4350.1,13.763]
[1760093438872,2.29874488,4350.2,4350.1,21.66]
[1760093439179,2.93234488,4350.2,4350.1,21.66]
[1760093440061,2.29874488,4350.2,4350.1,21.66]
[1760093440573,2.29874488,4350.2,4350.1,21.661]
[1760093445235,0.47108478,4351.2,4350.1,21.661]
[1760093445474,2.29821658,4351.2,4351.1,1.915]
[1760093445676,2.29821658,4351.2,4351.1,5.379]
[1760093446583,12.72537264,4352.7,4351.1,5.379]
[1760093446584,0.46065019,4351.5,4351.1,5.379]
[1760093446736,2.29805397,4351.6,4351.4,1.915]
[1760093446939,2.29805397,4351.6,4351.5,5.379]
[1760093446940,2.29800533,4351.6,4351.5,5.379]
[1760093447355,2.29790313,4351.8,4351.5,5.379]
[1760093447794,2.29784245,4352.0,4351.5,5.379]
[1760093447988,2.29779411,4352.0,4351.9,1.915]
[1760093448142,2.29779411,4352.0,4351.9,11.364]
[1760093448479,2.2975384,4352.5,4351.9,11.364]
[1760093448680,1.92,4352.8,4352.4,1.915]
[1760093448874,2.29753015,4352.5,4352.4,1.915]
[1760093449075,2.29753015,4352.5,4352.4,5.379]
[1760093449378,2.76804439,4352.5,4352.4,5.379]
[1760093452993,2.76724439,4352.5,4352.4,5.379]
[1760093455377,0.1144,4352.4,4351.3,2.2981602]
[1760093455577,0.1144,4351.9,4351.8,5.984]
[1760093455789,2.29763573,4352.3,4351.8,11.362]
[1760093455790,2.29779533,4352.0,4351.8,11.362]
[1760093455997,2.29779411,4352.0,4351.8,11.362]
[1760093456199,2.29784691,4351.9,4351.8,11.362]
[1760093456399,2.29779118,4352.1,4351.8,11.362]
[1760093456603,2.2978263,4352.0,4351.8,11.362]
[1760093457410,0.6336,4352.4,4350.1,3.121]
[1760093457597,0.6336,4352.2,4350.1,3.121]
[1760093457790,0.6336,4352.2,4352.1,1.914]
[1760093457993,0.6336,4352.2,4352.1,4.817]
[1760093458167,2.93128852,4352.2,4352.1,4.817]
[1760093458985,2.29834601,4351.0,4350.2,2.29872345]
[1760093459311,2.29774132,4352.1,4350.1,3.9005]
[1760093459483,2.29832222,4351.0,4350.9,5.983]
[1760093459680,2.29768852,4352.2,4350.4,2.29863476]
[1760093459887,2.29822182,4351.2,4351.1,5.983]
[1760093460103,2.29822182,4351.2,4351.1,11.272]